lending/lending_fUSD_20240621
["ID","MTS","AMOUNT","RATE_DAILY","PERIOD"]
[330074423,1718987936695,-500.0,0.00022191,4]
[330074424,1718987936738,-438.95,0.00022191,4]
[330074425,1718987936782,-500.0,0.00022191,4]
[330074426,1718987936825,-500.0,0.00022191,4]
[330074427,1718987936874,-1671.2,0.00022191,4]
[330074428,1718987936928,-500.0,0.00022191,4]
[330074429,1718987936969,-210.53,0.00022191,4]
[330074430,1718987937012,-500.0,0.00022191,4]
[330074431,1718987937056,-627.43,0.00022191,4]
[330074432,1718987937099,-500.0,0.00022191,4]
[330074433,1718987937144,-500.0,0.00022191,4]
[330074434,1718987937183,-1016.47,0.00022191,4]
[330074435,1718987937225,-500.0,0.00022191,4]
[330074436,1718987937266,-500.0,0.00022191,4]
[330074437,1718987937308,-500.0,0.00022191,4]
[330074438,1718987937352,-500.0,0.00022191,4]
[330074439,1718987937394,-500.0,0.00022191,4]
[330074440,1718987937436,-4141.01,0.00022191,4]
[330074441,1718987937484,-500.0,0.00022191,4]
[330074442,1718987937524,-500.0,0.00022191,4]
[330074443,1718987937576,-2643.93,0.00022191,4]
[330074444,1718987937619,-601.59,0.00022191,4]
[330074445,1718987937661,-156.75,0.00022191,4]
[330074446,1718987937700,-200.0,0.00022191,7]
[330074447,1718987937741,-192.01,0.00022191,4]
[330074448,1718987937783,-500.0,0.00022191,4]
[330074449,1718987937826,-500.0,0.00022191,4]
[330074450,1718987937867,-1896.72,0.00022191,4]
[330074451,1718987937907,-500.0,0.00022191,4]
[330074452,1718987937949,-500.0,0.00022191,4]
[330074453,1718987937990,-438.33,0.00022191,4]
[330074454,1718987938262,-172.47,0.00022191,4]
[330074455,1718987938316,-662.37,0.00022191,4]
[330074456,1718987938359,-500.0,0.00022191,4]
[330074457,1718987938401,-314.59,0.00022191,4]
[330074458,1718987938443,-7562.48,0.00022191,4]
[330074459,1718987938490,-500.0,0.00022191,4]
[330074460,1718987938533,-1208.48,0.00022191,4]
[330074461,1718987938576,-500.0,0.00022191,4]
[330074462,1718987938616,-357.44,0.00022191,4]
[330074463,1718987938658,-1467.19,0.00022191,4]
[330074464,1718987938700,-662.92,0.00022191,4]
[330074465,1718987938741,-2943.2,0.00022191,4]
[330074466,1718987938782,-492.0,0.00022191,4]
[330074467,1718987938826,-17432.86,0.00022191,4]
[330074468,1718987938867,-500.0,0.00022191,4]
[330074469,1718987938908,-395.12,0.00022191,4]
[330074470,1718987938949,-500.0,0.00022191,4]
[330074471,1718987938989,-162.92,0.00022191,4]
[330074472,1718987939030,-500.0,0.00022191,4]
[330074473,1718987939072,-511.28,0.00022191,4]
[330074474,1718987939116,-221.1,0.00022191,4]
[330074475,1718987939157,-500.0,0.00022191,4]
[330074476,1718987939200,-4580.89,0.00022191,4]
[330074477,1718987939241,-551.08,0.00022191,4]
[330074478,1718987939284,-500.0,0.00022191,4]
[330074479,1718987939326,-688.28,0.00022191,4]
[330074480,1718987939366,-2889.89,0.00022191,4]
[330074481,1718987939405,-500.0,0.00022191,4]
[330074482,1718987939450,-605.98,0.00022191,4]
[330074483,1718987939491,-576.93,0.00022191,4]
[330074484,1718987939532,-500.0,0.00022191,4]
[330074485,1718987939574,-214.95,0.00022191,4]
[330074486,1718987939613,-272.11,0.00022191,4]
[330074487,1718987939657,-26868.69,0.00022191,4]
[330074488,1718987939697,-1049.63,0.00022191,4]
[330074489,1718987939736,-500.0,0.00022191,4]
[330074490,1718987939775,-253.43,0.00022191,4]
[330074491,1718987939816,-947.8,0.00022191,4]
[330074492,1718987939856,-13569.16,0.00022191,4]
[330074493,1718987939896,-848.03,0.00022191,4]
[330074494,1718987939943,-1716.32,0.00022191,4]
[330074495,1718987939984,-500.0,0.00022191,4]
[330074496,1718987940035,-581.89,0.00022191,4]
[330074497,1718987940083,-2343.28,0.00022191,4]
[330074498,1718987940131,-626.82,0.00022191,4]
[330074499,1718987940178,-7449.74,0.00022199,2]
[330074500,1718987940232,-1069.4164457,0.00022462,2]
[330074501,1718987940283,-526.28955324,0.00022462,2]
[330074502,1718987940328,-482.76727412,0.00022462,2]
[330074503,1718987940368,-2977.76,0.00022463,4]
[330074504,1718987940410,-500.0,0.00022463,4]
[330074505,1718987940453,-2897.96,0.00022463,4]
[330074506,1718987940494,-2216.26,0.00022463,4]
[330074507,1718987940537,-8787.92,0.00022463,4]
[330074508,1718987940577,-3409.29,0.00022463,4]
[330074509,1718987940619,-569.84,0.00022463,4]
[330074510,1718987940661,-9766.92,0.00022464,4]
[330074511,1718987940701,-5957.09,0.00022464,4]
[330074512,1718987940745,-2546.71,0.00022464,4]
[330074513,1718987940790,-5000.0,0.00022464,2]
[330074514,1718987940834,-2587.22,0.00022464,4]
[330074515,1718987940877,-187.89378223,0.00022464,2]
[330074516,1718987940920,-3963.22039009,0.00022464,2]
[330074517,1718987940963,-1262.77288771,0.00022464,2]
[330074518,1718987941007,-2519.32,0.00022464,4]
[330074519,1718987941050,-378.479245,0.00022464,2]
[330074520,1718987941093,-345.95893679,0.00022464,2]
[330074521,1718987941139,-2756.69,0.00022464,4]
[330074522,1718987941182,-500.0,0.00022464,4]
[330074523,1718987941225,-29537.76,0.00022464,4]
[330074524,1718987941268,-500.0,0.00022464,4]
[330074525,1718987941309,-622.0,0.00022465,2]
[330074526,1718987941360,-1187.17,0.00022465,4]
[330074527,1718987941405,-540.27,0.00022465,4]
[330074528,1718987941450,-564.39,0.00022465,4]
[330074529,1718987941499,-500.0,0.00022465,4]
[330074530,1718987941551,-3220.37,0.00022465,4]
[330074531,1718987941598,-500.0,0.00022465,4]
[330074532,1718987941643,-2053.0,0.00022465,4]
[330074533,1718987941685,-500.0,0.00022465,4]
[330074534,1718987941726,-500.0,0.00022465,4]
[330074535,1718987941765,-2886.25,0.00022465,4]
[330074536,1718987941806,-13268.21,0.00022465,4]
[330074537,1718987941850,-500.0,0.00022465,4]
[330074538,1718987941895,-500.0,0.00022465,4]
[330074539,1718987941940,-500.0,0.00022465,4]
[330074540,1718987941995,-500.0,0.00022465,4]
[330074541,1718987942044,-500.0,0.00022465,4]
[330074542,1718987942092,-500.0,0.00022465,4]
[330074543,1718987942136,-345.15,0.00022465,4]
[330074544,1718987942178,-2920.1,0.00022465,4]
[330074545,1718987942219,-1218.51,0.00022465,4]
[330074546,1718987942264,-667.83,0.00022465,4]
[330074547,1718987942308,-3041.07,0.00022465,4]
[330074548,1718987942809,-500.0,0.00022465,4]
[330074549,1718987942853,-500.0,0.00022465,4]
[330074550,1718987942895,-500.0,0.00022465,4]
[330074551,1718987942937,-642.89,0.00022465,4]
[330074552,1718987942978,-500.0,0.00022465,4]
[330074553,1718987943020,-390.54,0.00022465,4]
[330074554,1718987943060,-1205.82,0.00022465,4]
[330074555,1718987943103,-500.0,0.00022465,4]
[330074556,1718987943145,-7009.17,0.00022465,4]
[330074557,1718987943186,-1969.7,0.00022465,4]
[330074558,1718987943226,-500.0,0.00022465,4]
[330074559,1718987943269,-5403.44,0.00022465,4]
[330074560,1718987943310,-7107.3,0.00022465,4]
[330074561,1718987943350,-500.0,0.00022465,4]
[330074562,1718987943390,-470.45,0.00022465,4]
[330074563,1718987943430,-500.0,0.00022465,4]
[330074564,1718987943471,-3798.27,0.00022465,4]
[330074565,1718987943511,-500.0,0.00022465,4]
[330074566,1718987943552,-598.19,0.00022465,4]
[330074567,1718987943593,-500.0,0.00022465,4]
[330074568,1718987943632,-500.0,0.00022465,4]
[330074569,1718987943672,-605.68,0.00022465,4]
[330074570,1718987943713,-399.75,0.00022465,4]
[330074571,1718987943752,-500.0,0.00022465,4]
[330074572,1718987943793,-500.0,0.00022465,4]
[330074573,1718987943835,-1671.2,0.00022465,4]
[330074574,1718987943876,-500.0,0.00022465,4]
[330074575,1718987943917,-517.32,0.00022465,4]
[330074576,1718987943960,-500.0,0.00022465,4]
[330074577,1718987944001,-500.0,0.00022465,4]
[330074578,1718987944043,-1016.47,0.00022465,4]
[330074579,1718987944083,-500.0,0.00022465,4]
[330074580,1718987944129,-335.58,0.00022465,4]
[330074581,1718987944178,-500.0,0.00022465,4]
[330074582,1718987944220,-500.0,0.00022465,4]
[330074583,1718987944262,-589.92,0.00022465,4]
[330074584,1718987944301,-4141.01,0.00022465,4]
[330074585,1718987944342,-350.95,0.00022465,4]
[330074586,1718987944383,-560.1,0.00022465,4]
[330074587,1718987944424,-2643.93,0.00022465,4]
[330074588,1718987944464,-225.8,0.00022465,7]
[330074589,1718987944506,-455.92,0.00022465,4]
[330074590,1718987944548,-276.04,0.00022465,4]
[330074591,1718987944590,-500.0,0.00022465,4]
[330074592,1718987944632,-1896.72,0.00022465,4]
[330074593,1718987944672,-478.18,0.00022465,4]
[330074594,1718987944712,-662.37,0.00022465,4]
[330074595,1718987944753,-500.0,0.00022465,4]
[330074596,1718987944793,-7562.48,0.00022465,4]
[330074597,1718987944832,-500.0,0.00022465,4]
[330074598,1718987944872,-1208.48,0.00022465,4]
[330074599,1718987944915,-500.0,0.00022465,4]
[330074600,1718987944958,-1467.19,0.00022465,4]
[330074601,1718987945001,-662.92,0.00022465,4]
[330074602,1718987945044,-2943.2,0.00022465,4]
[330074603,1718987945086,-17432.86,0.00022465,4]
[330074604,1718987945127,-500.0,0.00022465,4]
[330074605,1718987945168,-500.0,0.00022465,4]
[330074606,1718987945207,-493.29,0.00022465,4]
[330074607,1718987945247,-500.0,0.00022465,4]
[330074608,1718987945288,-4580.89,0.00022465,4]
[330074609,1718987945329,-500.0,0.00022465,4]
[330074610,1718987945369,-688.28,0.00022465,4]
[330074611,1718987945409,-2889.89,0.00022465,4]
[330074612,1718987945454,-500.0,0.00022465,4]
[330074613,1718987945496,-500.0,0.00022465,4]
[330074614,1718987945539,-26868.69,0.00022465,4]
[330074615,1718987945585,-1049.63,0.00022465,4]
[330074616,1718987945626,-500.0,0.00022465,4]
[330074617,1718987945667,-947.8,0.00022465,4]
[330074618,1718987945709,-13569.16,0.00022465,4]
[330074619,1718987945750,-848.03,0.00022465,4]
[330074620,1718987945799,-1716.32,0.00022465,4]
[330074621,1718987945842,-500.0,0.00022465,4]
[330074622,1718987945883,-581.89,0.00022465,4]
[330074623,1718987945925,-2343.28,0.00022465,4]
[330074624,1718987945966,-626.82,0.00022465,4]
[330074625,1718987946008,-328.2119045,0.0002249,2]
[330074626,1718987946194,-1007.21281223,0.0002253,2]
[330074627,1718987946234,-2977.76,0.00022737,4]
[330074628,1718987946273,-500.0,0.00022737,4]
[330074629,1718987946313,-2897.96,0.00022737,4]
[330074630,1718987946356,-2216.26,0.00022737,4]
[330074631,1718987946395,-155.0,0.00022737,2]
[330074632,1718987946433,-8787.92,0.00022737,4]
[330074633,1718987946479,-3409.29,0.00022737,4]
[330074634,1718987946522,-569.84,0.00022737,4]
[330074635,1718987946562,-9766.92,0.00022738,4]
[330074636,1718987946605,-5957.09,0.00022738,4]
[330074637,1718987946645,-2546.71,0.00022738,4]
[330074638,1718987946685,-2587.22,0.00022738,4]
[330074639,1718987946726,-2519.32,0.00022738,4]
[330074640,1718987946771,-2756.69,0.00022738,4]
[330074641,1718987946811,-542.09,0.00022738,4]
[330074642,1718987946854,-29537.76,0.00022738,4]
[330074643,1718987946899,-500.0,0.00022738,4]
[330074644,1718987946940,-1187.17,0.00022739,4]
[330074645,1718987946979,-540.27,0.00022739,4]
[330074646,1718987947019,-564.39,0.00022739,4]
[330074647,1718987947060,-500.00000085,0.00022739,4]
[330074648,1718987947099,-3220.37,0.00022739,4]
[330074649,1718987947139,-642.67,0.00022739,4]
[330074650,1718987947180,-2053.0,0.00022739,4]
[330074651,1718987947220,-215.38,0.00022739,4]
[330074652,1718987947260,-151.0,0.00022739,7]
[330074653,1718987947299,-151.0,0.00022739,7]
[330074654,1718987947339,-438.16,0.00022739,4]
[330074655,1718987947380,-2886.25,0.00022739,4]
[330074656,1718987947422,-13268.21,0.00022739,4]
[330074657,1718987947463,-500.0,0.00022739,4]
[330074658,1718987947503,-169.99,0.00022739,4]
[330074659,1718987947544,-500.0,0.00022739,4]
[330074660,1718987947584,-500.0,0.00022739,4]
[330074661,1718987947625,-500.0,0.00022739,4]
[330074662,1718987947668,-151.0,0.00022739,7]
[330074663,1718987947708,-500.0,0.00022739,4]
[330074664,1718987947747,-1218.51,0.00022739,4]
[330074665,1718987947788,-2920.1,0.00022739,4]
[330074666,1718987947830,-667.83,0.00022739,4]
[330074667,1718987947869,-169.48516651,0.00022739,2]
[330074668,1718987947909,-3041.07,0.00022739,4]
[330074669,1718987947948,-500.0,0.00022739,4]
[330074670,1718987947986,-500.0,0.00022739,4]
[330074671,1718987948028,-500.0,0.00022739,4]
[330074672,1718987948069,-463.652632,0.00022739,7]
[330074673,1718987948111,-463.652632,0.00022739,7]
[330074674,1718987948151,-500.0,0.00022739,4]
[330074675,1718987948189,-1205.82,0.00022739,4]
[330074676,1718987948229,-500.0,0.00022739,4]
[330074677,1718987948271,-463.652632,0.00022739,7]
[330074678,1718987948313,-463.652632,0.00022739,7]
[330074679,1718987948358,-7009.17,0.00022739,4]
[330074680,1718987948399,-1969.7,0.00022739,4]
[330074681,1718987948439,-500.0,0.00022739,4]
[330074682,1718987948485,-5403.44,0.00022739,4]
[330074683,1718987948528,-7107.3,0.00022739,4]
[330074684,1718987948570,-158.31,0.00022739,4]
[330074685,1718987948613,-402.16,0.00022739,4]
[330074686,1718987948657,-3798.27,0.00022739,4]
[330074687,1718987948698,-500.0,0.00022739,4]
[330074688,1718987948740,-226.57,0.00022739,4]
[330074689,1718987948781,-500.0,0.00022739,4]
[330074690,1718987948822,-500.0,0.00022739,4]
[330074691,1718987948863,-500.0,0.00022739,4]
[330074692,1718987949751,-1671.2,0.00022739,4]
[330074693,1718987950269,-500.0,0.00022739,4]
[330074694,1718987950312,-500.0,0.00022739,4]
[330074695,1718987950358,-500.0,0.00022739,4]
[330074696,1718987950401,-1016.47,0.00022739,4]
[330074697,1718987950445,-334.2396409,0.00022739,4]
[330074698,1718987950491,-500.0,0.00022739,4]
[330074699,1718987950537,-228.57639803,0.00022739,4]
[330074700,1718987950581,-4141.01,0.00022739,4]
[330074701,1718987950624,-2643.93,0.00022739,4]
[330074702,1718987950672,-358.54105563,0.00022739,4]
[330074703,1718987950715,-1896.72,0.00022739,4]
[330074704,1718987950759,-662.37,0.00022739,4]
[330074705,1718987950803,-274.01,0.00022739,4]
[330074706,1718987950845,-7562.48,0.00022739,4]
[330074707,1718987950896,-582.35,0.00022739,4]
[330074708,1718987950940,-1208.48,0.00022739,4]
[330074709,1718987950986,-499.75,0.00022739,4]
[330074710,1718987951031,-1467.19,0.00022739,4]
[330074711,1718987951076,-662.92,0.00022739,4]
[330074712,1718987951121,-2943.2,0.00022739,4]
[330074713,1718987951166,-818.50245,0.00022739,2]
[330074714,1718987951212,-17432.86,0.00022739,4]
[330074715,1718987951256,-500.0,0.00022739,4]
[330074716,1718987951304,-500.0,0.00022739,4]
[330074717,1718987951354,-500.0,0.00022739,4]
[330074718,1718987951406,-4580.89,0.00022739,4]
[330074719,1718987951458,-500.0,0.00022739,4]
[330074720,1718987951505,-688.28,0.00022739,4]
[330074721,1718987951570,-2889.89,0.00022739,4]
[330074722,1718987951617,-500.0,0.00022739,4]
[330074723,1718987951664,-500.0,0.00022739,4]
[330074724,1718987951710,-26868.69,0.00022739,4]
[330074725,1718987951755,-1049.63,0.00022739,4]
[330074726,1718987951800,-500.0,0.00022739,4]
[330074727,1718987951849,-947.8,0.00022739,4]
[330074728,1718987951900,-13569.16,0.00022739,4]
[330074729,1718987951949,-848.03,0.00022739,4]
[330074730,1718987951996,-1716.32,0.00022739,4]
[330074731,1718987952041,-500.0,0.00022739,4]
[330074732,1718987952089,-581.89,0.00022739,4]
[330074733,1718987952135,-2343.28,0.00022739,4]
[330074734,1718987952182,-626.82,0.00022739,4]
[330074735,1718987952233,-163.97131274,0.00022797,2]
[330074736,1718987952279,-163.97131272,0.00022844,2]
[330074737,1718987952329,-493167.409983,0.00022887,2]
[330074738,1718987952381,-328.2119045,0.0002289,2]
[330074739,1718987952432,-163.97131272,0.0002289,2]
[330074740,1718987952484,-151.0,0.00022897,7]
[330074741,1718987952536,-463.652632,0.00022897,7]
[330074742,1718987952588,-463.652632,0.00022897,7]
[330074743,1718987952639,-167.838324,0.000229,7]
[330074744,1718987952706,-209.38100041,0.00022989,2]
[330074745,1718987952963,-2430.39590393,0.00022989,2]
[330074746,1718987953019,-715650.80469746,0.0002299,4]
[330074748,1718987953068,-1771.25803675,0.0002299,5]
[330074749,1718987953120,-2675016.77501736,0.0002299,5]
[330074750,1718987953969,1800.0,0.00025999,60]
[330074751,1718987965174,646.87246548,0.00026,60]
[330074755,1718988127099,474.48,0.00020968,30]
[330074779,1718988596891,161.95,0.00016239,2]
[330074780,1718988608199,1865.71596829,0.00018811,2]
[330074781,1718988613167,849.08474745,0.00018814,2]
[330074789,1718988631971,-152.78,0.00018808,2]
[330074790,1718988631983,-1016.63122084,0.00018814,2]
[330074791,1718988631994,-1587.70542828,0.00018816,2]
[330074792,1718988632143,-278.01054001,0.00018816,2]
[330074793,1718988632154,-150.16,0.00018906,2]
[330074794,1718988632164,-151.87,0.00018911,2]
[330074795,1718988632174,-151.94,0.00018916,2]
[330074796,1718988632259,-150.37,0.00018977,2]
[330074797,1718988632269,-150.89,0.00019021,2]
[330074798,1718988632278,-151.6,0.00019077,2]
[330074799,1718988632287,-153.21,0.00019082,2]
[330074800,1718988632297,-150.23,0.00019177,2]
[330074801,1718988632306,-152.33,0.00019182,2]
[330074802,1718988632317,-447.23,0.00019186,2]
[330074803,1718988632334,-499.99,0.00019186,2]
[330074804,1718988632347,-656.72387954,0.00020229,2]
[330074805,1718988632359,-143.27612046,0.00020229,2]
[330074806,1718988632369,-111.40980006,0.00020534,2]
[330074808,1718988632402,-138.59019994,0.00020534,2]
[330074810,1718988632411,-250.0,0.00020789,2]
[330074812,1718988632422,-169.48516651,0.00020968,2]
[330074814,1718988632431,-567.49768048,0.00020968,2]
[330074847,1718988637864,-523.13614426,0.00021226,2]
[330074848,1718988637874,-296.20867588,0.00021239,2]
[330074849,1718988637885,-151.78,0.00021242,2]
[330074850,1718988637895,-200.0,0.00021247,2]
[330074851,1718988637905,-2311.06573333,0.00021445,2]
[330074852,1718988637915,-447.23,0.0002145,2]
[330074853,1718988637925,-1133.53475068,0.0002147,2]
[330074854,1718988637935,-152.77,0.00021471,2]
[330074855,1718988637945,-152.0,0.00021474,2]
[330074856,1718988637955,-152.92,0.00021479,2]
[330074857,1718988637964,-266.78245834,0.00021691,2]
[330074858,1718988637974,-579.88,0.00021692,2]
[330074859,1718988637983,-170.17,0.00021692,2]
[330074860,1718988637993,-638.88886115,0.00021736,2]
[330074861,1718988638003,-187.89378223,0.00021736,2]
[330074862,1718988638012,-787.64577739,0.00021737,2]
[330074863,1718988638022,-363.71116501,0.00021737,5]
[330074864,1718988638033,-363.71116501,0.00021738,5]
[330074865,1718988638044,-155.0,0.00021738,2]
[330074866,1718988638054,-163.5767579,0.00021739,2]
[330074867,1718988638065,-3105.79028967,0.00021739,2]
[330074868,1718988638075,-186.68,0.0002175,2]
[330074869,1718988638096,-211.78496584,0.00021808,2]
[330074870,1718988638106,-161.25508039,0.00021817,2]
[330074871,1718988638116,-174.7005957,0.00021817,2]
[330074872,1718988638126,-170.00039905,0.00021899,2]
[330074873,1718988638136,-269.20894973,0.00021899,2]
[330074874,1718988638147,-10000.0,0.00021899,2]
[330074875,1718988638157,-1069.4164457,0.00021899,2]
[330074876,1718988638166,-437.90975551,0.000219,2]
[330074877,1718988638175,-168.52394196,0.000219,2]
[330074878,1718988638186,-5000.0,0.000219,2]
[330074880,1718988638195,-3963.22039009,0.000219,2]
[330074882,1718988638204,-345.95893679,0.000219,2]
[330074884,1718988638213,-526.28955324,0.000219,2]
[330074886,1718988638222,-482.76727412,0.000219,2]
[330074888,1718988638231,-830.71890196,0.00021901,2]
[330074890,1718988638241,-158.21632429,0.00021901,2]
[330074892,1718988638251,-531.96070658,0.00021901,2]
[330074894,1718988638260,-326.69444584,0.00021901,2]
[330074896,1718988638270,-366.0285791,0.00021901,2]
[330074898,1718988638280,-526.28955324,0.00021902,2]
[330074900,1718988638289,-283.44364674,0.00021902,2]
[330074902,1718988638299,-378.479245,0.00021902,2]
[330074904,1718988638308,-155.0,0.00021902,2]
[330074906,1718988638317,-301.6662701,0.00021903,2]
[330074908,1718988638326,-163.56645458,0.00021904,2]
[330074910,1718988638345,-163.56645458,0.00021904,2]
[330074912,1718988638354,-202.40067256,0.00021906,2]
[330074914,1718988638364,-202.40067256,0.00021906,2]
[330074916,1718988638374,-158.80388924,0.00021906,2]
[330074918,1718988638383,-110134.1939705,0.00021907,2]
[330074920,1718988638395,-138223.4945105,0.00021907,2]
[330074922,1718988638404,-179.98125638,0.00021907,2]
[330074924,1718988638413,-269.44071926,0.00021908,2]
[330074926,1718988638423,-159.37168216,0.00021916,2]
[330074928,1718988638432,-1424.61870481,0.00021917,2]
[330074930,1718988638441,-500.0,0.00021917,4]
[330074932,1718988638451,-500.0,0.00021917,4]
[330074934,1718988638460,-500.0,0.00021917,4]
[330074936,1718988638470,-500.0,0.00021917,4]
[330074938,1718988638480,-500.0,0.00021917,4]
[330074940,1718988638489,-500.0,0.00021917,4]
[330074942,1718988638499,-500.0,0.00021917,4]
[330074944,1718988638509,-500.0,0.00021917,4]
[330074946,1718988638518,-500.0,0.00021917,4]
[330074948,1718988638528,-500.0,0.00021917,4]
[330074950,1718988638538,-500.0,0.00021917,4]
[330074952,1718988638547,-587.07210162,0.00021917,4]
[330074954,1718988638557,-500.0,0.00021917,4]
[330074956,1718988638566,-617.23,0.00021917,4]
[330074958,1718988638576,-525.73,0.00021917,4]
[330074960,1718988638592,-558.25,0.00021917,4]
[330074962,1718988638602,-500.0,0.00021917,4]
[330074965,1718988638612,-500.0,0.00021917,4]
[330074967,1718988638622,-500.0,0.00021917,4]
[330074969,1718988638631,-939.45,0.00021917,4]
[330074970,1718988638640,-500.0,0.00021917,4]
[330074972,1718988638651,-500.0,0.00021917,4]
[330074975,1718988638661,-500.0,0.00021917,4]
[330074977,1718988638672,-851.75,0.00021917,4]
[330074979,1718988638684,-558.1666703,0.00021917,4]
[330074980,1718988638694,-1715.23,0.00021917,4]
[330074982,1718988638704,-500.0,0.00021917,4]
[330074985,1718988638715,-500.0,0.00021917,4]
[330074987,1718988638725,-500.0,0.00021917,4]
[330074989,1718988638735,-500.0,0.00021917,4]
[330074990,1718988638745,-500.0,0.00021917,4]
[330074992,1718988638756,-500.0,0.00021917,4]
[330074994,1718988638767,-500.0,0.00021917,4]
[330074996,1718988638776,-500.0,0.00021917,4]
[330074998,1718988638785,-500.0,0.00021917,4]
[330075000,1718988638795,-500.0,0.00021917,2]
[330075002,1718988638805,-637.49,0.00021917,4]
[330075004,1718988638815,-500.0,0.00021917,4]
[330075006,1718988638825,-500.0,0.00021917,4]
[330075008,1718988638839,-500.0,0.00021917,4]
[330075010,1718988638849,-500.0,0.00021917,4]
[330075011,1718988638860,-500.0,0.00021917,4]
[330075012,1718988638870,-500.0,0.00021917,4]
[330075013,1718988638879,-500.0,0.00021917,4]
[330075014,1718988638889,-500.0,0.00021917,4]
[330075015,1718988638899,-589.86,0.00021917,4]
[330075016,1718988638909,-500.0,0.00021917,4]
[330075017,1718988638918,-614.73,0.00021917,4]
[330075018,1718988638928,-1438.3,0.00021917,4]
[330075019,1718988638938,-1302.1,0.00021917,4]
[330075020,1718988638948,-500.0,0.00021917,4]
[330075021,1718988638964,-500.0,0.00021917,4]
[330075022,1718988638974,-500.0,0.00021917,4]
[330075023,1718988638983,-791.04,0.00021917,4]
[330075025,1718988638993,-500.0,0.00021917,4]
[330075027,1718988639003,-777.09,0.00021917,4]
[330075029,1718988639013,-500.0,0.00021917,4]
[330075031,1718988639022,-500.0,0.00021917,4]
[330075033,1718988639032,-500.0,0.00021917,4]
[330075035,1718988639042,-500.0,0.00021917,4]
[330075037,1718988639053,-645.56768248,0.00021917,4]
[330075039,1718988639063,-2238.19,0.00021917,4]
[330075041,1718988639074,-500.0,0.00021917,4]
[330075043,1718988639087,-837.21,0.00021917,4]
[330075045,1718988639098,-500.0,0.00021917,4]
[330075047,1718988639108,-1046.79,0.00021917,4]
[330075049,1718988639120,-500.0,0.00021917,4]
[330075051,1718988639130,-500.0,0.00021917,4]
[330075053,1718988639140,-1389.4,0.00021917,4]
[330075055,1718988639151,-500.0,0.00021917,4]
[330075057,1718988639162,-500.0,0.00021917,4]
[330075059,1718988639172,-1901.88,0.00021917,4]
[330075061,1718988639182,-829.0,0.00021917,4]
[330075064,1718988639192,-500.0,0.00021917,4]
[330075065,1718988639203,-500.0,0.00021917,4]
[330075067,1718988639214,-616.18,0.00021917,4]
[330075069,1718988639223,-500.0,0.00021917,4]
[330075071,1718988639234,-500.0,0.00021917,4]
[330075073,1718988639244,-500.0,0.00021917,4]
[330075076,1718988639254,-1055.53,0.00021917,4]
[330075077,1718988639265,-500.0,0.00021917,4]
[330075079,1718988639276,-500.0,0.00021917,4]
[330075081,1718988639286,-500.0,0.00021917,4]
[330075083,1718988639296,-500.0,0.00021917,4]
[330075085,1718988639306,-500.0,0.00021917,4]
[330075087,1718988639316,-603.31,0.00021917,4]
[330075089,1718988639326,-500.0,0.00021917,4]
[330075091,1718988639339,-500.0,0.00021917,4]
[330075094,1718988639349,-1060.7,0.00021917,4]